bitfinex/quotes_BTCUSD_20240911
["timestamp","ask_amount","ask_price","bid_price","bid_amount"]
[1726032372082,0.18194018,56367.0,56361.0,0.0633]
[1726032373683,0.01,56367.0,56362.0,0.26359045]
[1726032373936,0.01,56367.0,56366.0,0.24909045]
[1726032374159,0.01,56367.0,56366.0,0.0662]
[1726032374632,0.006,56367.0,56366.0,0.0662]
[1726032374864,0.009,56367.0,56366.0,0.32979045]
[1726032375307,0.000817,56368.0,56366.0,0.26359045]
[1726032375559,0.000817,56368.0,56367.0,0.0662]
[1726032377989,0.001817,56368.0,56367.0,0.0682]
[1726032378620,0.002817,56368.0,56367.0,0.0682]
[1726032379142,0.17875718,56368.0,56367.0,0.0682]
[1726032379355,0.17875718,56368.0,56367.0,0.002]
[1726032379798,0.17775718,56368.0,56367.0,0.002]
[1726032380731,0.17675718,56368.0,56364.0,0.001634]
[1726032380953,0.17594018,56367.0,56364.0,0.001634]
[1726032383035,0.18294018,56367.0,56364.0,0.001634]
[1726032383709,0.18794018,56367.0,56364.0,0.001634]
[1726032384157,0.18294018,56367.0,56364.0,0.001634]
[1726032384377,0.17994018,56367.0,56364.0,0.001634]
[1726032384589,0.184376,56367.0,56364.0,0.001634]
[1726032384813,0.18194018,56367.0,56364.0,0.001634]
[1726032385027,0.23485265,56367.0,56364.0,0.001634]
[1726032385236,0.05291247,56366.0,56364.0,0.001634]
[1726032385448,0.180376,56365.0,56364.0,0.001634]
[1726032386762,0.83215605,56365.0,56364.0,0.001634]
[1726032388572,0.91535605,56365.0,56364.0,0.001634]
[1726032388808,0.92135605,56365.0,56364.0,0.001634]
[1726032389052,0.98625605,56365.0,56364.0,0.001634]
[1726032389232,1.03916852,56365.0,56364.0,0.001634]
[1726032389501,1.48469029,56365.0,56364.0,0.001634]
[1726032389720,1.54524025,56365.0,56364.0,0.001634]
[1726032390196,1.56824025,56365.0,56364.0,0.001634]
[1726032390454,1.32344867,56365.0,56364.0,0.001634]
[1726032391568,1.19154315,56365.0,56364.0,0.001634]
[1726032392004,1.32344867,56365.0,56364.0,0.001634]
[1726032392231,1.19154315,56365.0,56364.0,0.001634]
[1726032394553,1.29702092,56365.0,56364.0,0.001634]
[1726032399898,1.23212092,56365.0,56364.0,0.001634]
[1726032401667,0.99600926,56365.0,56364.0,0.001634]
[1726032402571,0.91773723,56365.0,56364.0,0.001634]
[1726032402782,0.99682626,56365.0,56364.0,0.001634]
[1726032403874,0.92162626,56365.0,56364.0,0.001634]
[1726032406394,0.84253723,56365.0,56364.0,0.001634]
[1726032406650,1.6368787,56365.0,56364.0,0.001634]
[1726032406863,1.55440093,56365.0,56364.0,0.001634]
[1726032407586,1.61440093,56365.0,56364.0,0.001634]
[1726032407818,0.2323,56361.0,56355.0,0.0062551]
[1726032408045,0.98375891,56361.0,56355.0,0.0062551]
[1726032408505,0.98575891,56361.0,56355.0,0.0062551]
[1726032408954,0.98473465,56361.0,56355.0,0.0062551]
[1726032409389,1.1609042,56361.0,56355.0,0.0062551]
[1726032409847,1.1749042,56361.0,56355.0,0.0062551]
[1726032410984,1.1609042,56361.0,56355.0,0.0062551]
[1726032411202,1.81268425,56361.0,56355.0,0.0062551]
[1726032411437,1.82668425,56361.0,56355.0,0.0062551]
[1726032412103,1.81268425,56361.0,56355.0,0.0062551]
[1726032412379,1.84068425,56361.0,56355.0,0.0062551]
[1726032412607,0.092,56357.0,56355.0,0.0062551]
[1726032412827,1.3293499,56357.0,56355.0,0.0062551]
[1726032413082,1.63628042,56357.0,56355.0,0.0062551]
[1726032414921,1.65028042,56357.0,56355.0,0.0062551]
[1726032415361,1.66428042,56357.0,56355.0,0.0062551]
[1726032415569,1.82644997,56357.0,56355.0,0.0062551]
[1726032415777,1.84044997,56357.0,56355.0,0.0062551]
[1726032416862,0.4698725,56357.0,56355.0,0.0062551]
[1726032417080,0.25660789,56357.0,56355.0,0.0723551]
[1726032417293,0.18994018,56357.0,56355.0,0.0723551]
[1726032417521,0.20394018,56357.0,56355.0,0.0723551]
[1726032417956,0.18994018,56357.0,56355.0,0.0723551]
[1726032418192,0.18994018,56357.0,56355.0,0.0062551]
[1726032418426,0.20294018,56357.0,56355.0,0.0062551]
[1726032418651,0.19337711,56357.0,56355.0,0.0062551]
[1726032418864,0.18037711,56357.0,56355.0,0.0062551]
[1726032419078,0.25604557,56357.0,56355.0,0.0062551]
[1726032419289,0.24204557,56357.0,56355.0,0.0062551]
[1726032419506,0.23760864,56357.0,56355.0,0.0062551]
[1726032419729,0.2766718,56357.0,56355.0,0.0062551]
[1726032419945,0.60332815,56357.0,56355.0,0.0062551]
[1726032420159,0.71252815,56357.0,56355.0,0.0062551]
[1726032420373,0.86719931,56357.0,56355.0,0.0062551]
[1726032420824,0.84085831,56357.0,56355.0,0.0062551]
[1726032421037,0.84076232,56357.0,56355.0,0.0062551]
[1726032421265,0.70543199,56357.0,56355.0,0.0062551]
[1726032421482,0.76048104,56357.0,56355.0,0.0062551]
[1726032421921,0.73048104,56357.0,56355.0,0.0062551]
[1726032422156,0.76048104,56357.0,56355.0,0.0062551]
[1726032422380,0.65513731,56357.0,56355.0,0.0062551]
[1726032422808,0.60213731,56357.0,56355.0,0.0062551]
[1726032423035,1.21897321,56357.0,56355.0,0.0062551]
[1726032423256,1.15555006,56357.0,56355.0,0.0062551]
[1726032423483,1.21453432,56357.0,56355.0,0.0062551]
[1726032423731,0.84372023,56357.0,56355.0,0.0062551]
[1726032424408,0.9227567,56357.0,56355.0,0.0062551]
[1726032425060,1.05576425,56357.0,56355.0,0.0062551]
[1726032425279,0.9227567,56357.0,56355.0,0.0062551]
[1726032425498,1.05104518,56357.0,56355.0,0.0062551]
[1726032426165,1.30333395,56357.0,56355.0,0.0062551]
[1726032426449,1.18923395,56357.0,56355.0,0.0062551]
[1726032426678,1.18285914,56357.0,56355.0,0.0062551]
[1726032428539,1.05104518,56357.0,56355.0,0.0062551]
[1726032428760,1.11006675,56357.0,56355.0,0.0062551]
[1726032428991,1.30227372,56357.0,56355.0,0.0062551]
[1726032429206,1.16306675,56357.0,56355.0,0.0062551]
[1726032430173,0.9557418,56357.0,56355.0,0.0062551]
[1726032430407,1.13317783,56357.0,56355.0,0.0062551]
[1726032430635,1.16317783,56357.0,56355.0,0.0062551]
[1726032431326,1.13317783,56357.0,56355.0,0.0062551]
[1726032431554,1.16317783,56357.0,56355.0,0.0062551]
[1726032431765,1.13317783,56357.0,56355.0,0.0062551]
[1726032432646,1.30392922,56357.0,56355.0,0.0062551]
[1726032433076,1.33392922,56357.0,56355.0,0.0062551]
[1726032433723,1.16317783,56357.0,56355.0,0.0062551]
[1726032433999,1.32150645,56357.0,56355.0,0.0062551]
[1726032434212,1.45324069,56357.0,56355.0,0.0062551]
[1726032434898,1.32152038,56357.0,56355.0,0.0062551]
[1726032435747,1.61145516,56357.0,56355.0,0.0062551]
[1726032435953,1.45989483,56357.0,56355.0,0.0062551]
[1726032436607,1.5914389,56357.0,56355.0,0.0062551]
[1726032436830,1.8174389,56357.0,56355.0,0.0062551]
[1726032438147,0.092,56356.0,56355.0,0.00615382]
[1726032438369,1.20496881,56356.0,56355.0,0.00615382]
[1726032438580,1.20296881,56356.0,56355.0,0.00615382]
[1726032439929,1.20896881,56356.0,56355.0,0.00615382]
[1726032440603,1.21696881,56356.0,56355.0,0.00615382]
[1726032441037,1.86874886,56356.0,56355.0,0.00615382]
[1726032441245,1.87074886,56356.0,56355.0,0.00615382]
[1726032441977,0.41799045,56352.0,56351.0,0.0001]
[1726032442187,1.20030987,56352.0,56351.0,0.0001]
[1726032443499,1.21030987,56352.0,56351.0,0.0001]
[1726032444172,1.28362238,56352.0,56351.0,0.0001]
[1726032444384,1.28475478,56352.0,56351.0,0.0001]
[1726032444597,1.46092433,56352.0,56351.0,0.0001]
[1726032444825,1.45992433,56352.0,56351.0,0.0001]
[1726032445044,1.48572549,56352.0,56351.0,0.0001]
[1726032445275,1.49972549,56352.0,56351.0,0.0001]
[1726032445744,1.50172549,56352.0,56351.0,0.0001]
[1726032446190,1.48972549,56352.0,56351.0,0.0001]
[1726032446412,2.03173649,56352.0,56351.0,0.0001]
[1726032446639,2.03173649,56352.0,56347.0,0.001634]
[1726032446640,0.27526041,56348.0,56347.0,0.001634]
[1726032446863,0.93591291,56348.0,56347.0,0.001634]
[1726032447085,1.45434553,56348.0,56347.0,0.001634]
[1726032447314,0.1431,56344.0,56322.0,0.0024841]
[1726032447536,0.1431,56344.0,56307.0,0.001634]
[1726032447537,0.03,56308.0,56307.0,0.001634]
[1726032447804,0.49548146,56308.0,56307.0,0.001634]
[1726032448062,0.18326041,56312.0,56307.0,0.0019607]
[1726032448306,0.15823362,56308.0,56301.0,0.0606]
[1726032448511,0.00738541,56296.0,56283.0,0.18326041]
[1726032449175,0.00738541,56297.0,56287.0,0.0606]
[1726032449683,0.00738541,56297.0,56288.0,0.18326041]
[1726032450994,0.17594018,56307.0,56294.0,0.0606]
[1726032450995,0.00738541,56302.0,56294.0,0.0606]
[1726032451425,0.00738541,56302.0,56295.0,0.0763]
[1726032451885,0.002,56297.0,56295.0,0.0763]
[1726032452318,0.002,56297.0,56296.0,0.0606]
[1726032452533,0.002,56297.0,56296.0,0.43545477]
[1726032452976,0.002,56297.0,56296.0,0.2369]
[1726032453475,0.00738541,56308.0,56296.0,0.2369]
[1726032453699,0.006,56302.0,56300.0,0.18326041]
[1726032454151,0.00738541,56311.0,56301.0,0.2369]
[1726032454375,0.00738541,56311.0,56306.0,0.18326041]
[1726032454626,0.00738541,56311.0,56307.0,0.0606]
[1726032454865,0.00738541,56316.0,56308.0,0.0763]
[1726032455097,0.0025041,56327.0,56312.0,0.18326041]
[1726032455098,0.00738541,56317.0,56312.0,0.18326041]
[1726032455299,0.00738541,56317.0,56308.0,0.0763]
[1726032455540,0.003,56311.0,56308.0,0.0763]
[1726032455784,0.00738541,56314.0,56308.0,0.0763]
[1726032456207,0.00738541,56313.0,56308.0,0.0763]
[1726032457577,0.006,56316.0,56311.0,0.18326041]
[1726032457783,0.004,56313.0,56311.0,0.18326041]
[1726032458453,0.00738541,56324.0,56312.0,0.0606]
[1726032458681,0.00738541,56322.0,56319.0,0.18326041]
[1726032458905,0.18332559,56326.0,56319.0,0.18326041]
[1726032459125,0.0025041,56327.0,56325.0,0.18326041]
[1726032459347,0.0025041,56327.0,56326.0,0.0763]
[1726032459832,0.0025041,56327.0,56326.0,0.1369]
[1726032460971,0.0025041,56327.0,56326.0,0.2389]
[1726032461849,0.0035041,56327.0,56326.0,0.2429]
[1726032462266,0.0025041,56327.0,56326.0,0.2389]
[1726032462756,0.0035041,56327.0,56326.0,0.2439]
[1726032463004,0.0035041,56327.0,56326.0,0.25939041]
[1726032463263,0.0043221,56327.0,56326.0,0.25939041]
[1726032463730,0.0053221,56327.0,56326.0,0.25939041]
[1726032463976,0.0043221,56327.0,56326.0,0.25439041]
[1726032464222,0.0043221,56327.0,56326.0,0.45294518]
[1726032464476,0.0043221,56327.0,56326.0,0.45694518]
[1726032464477,0.0053221,56327.0,56326.0,0.45694518]
[1726032464713,0.0043221,56327.0,56326.0,0.45294518]
[1726032464950,0.0025041,56338.0,56331.0,0.002]
[1726032465195,0.0025041,56338.0,56337.0,0.18326041]
[1726032466193,0.00738541,56344.0,56337.0,0.18326041]
[1726032466435,0.00738541,56341.0,56337.0,0.18326041]
[1726032466894,0.002,56338.0,56337.0,0.18326041]
[1726032467106,0.002,56338.0,56337.0,0.26466041]
[1726032467324,0.0019586,56342.0,56337.0,0.26466041]
[1726032467540,0.001,56338.0,56337.0,0.09641355]
[1726032467764,0.0019586,56342.0,56337.0,0.09641355]
[1726032467975,0.0019586,56342.0,56341.0,0.18326041]
[1726032468889,0.0019586,56342.0,56341.0,0.28326041]
[1726032469747,0.0019586,56342.0,56341.0,0.34456041]
[1726032470206,0.000817,56357.0,56351.0,0.18326041]
[1726032470433,0.000817,56357.0,56355.0,0.18326041]
[1726032471586,0.000817,56357.0,56355.0,0.35920059]
[1726032471788,0.000817,56357.0,56355.0,0.38181518]
[1726032472004,0.000817,56357.0,56356.0,0.1]
[1726032473333,0.00820241,56357.0,56347.0,0.1613]
[1726032473546,0.00738541,56356.0,56347.0,0.1613]
[1726032473759,0.00738541,56352.0,56346.0,0.18326041]
[1726032473962,0.00738541,56352.0,56342.0,0.24456041]
[1726032474173,0.00738541,56351.0,56342.0,0.24456041]
[1726032474824,0.08838541,56350.0,56342.0,0.18326041]
[1726032475031,0.00738541,56347.0,56338.0,0.24456041]
[1726032475235,0.00738541,56344.0,56338.0,0.24456041]
[1726032475447,0.18332559,56343.0,56342.0,0.013]
[1726032475892,0.00738541,56328.0,56323.0,0.0613]
[1726032476151,0.18332559,56327.0,56317.0,0.24456041]
[1726032477086,0.18332559,56327.0,56317.0,0.0613]
[1726032477294,0.83098754,56327.0,56311.0,0.0613]
[1726032477539,0.91198754,56327.0,56311.0,0.0613]
[1726032478494,0.26432559,56327.0,56311.0,0.0613]
[1726032478710,0.29676421,56327.0,56326.0,0.003634]
[1726032478986,0.29232559,56327.0,56326.0,0.003634]
[1726032479216,0.27832559,56327.0,56326.0,0.002634]
[1726032479440,0.29232559,56327.0,56326.0,0.003634]
[1726032480940,0.028,56327.0,56326.0,0.003634]
[1726032482048,0.00738541,56328.0,56326.0,0.001634]
[1726032482486,0.016,56327.0,56326.0,0.003634]
[1726032482705,0.009,56327.0,56326.0,0.002634]
[1726032483141,0.015,56327.0,56326.0,0.003634]
[1726032483818,0.006,56327.0,56326.0,0.002634]
[1726032484074,0.014,56327.0,56326.0,0.003634]
[1726032484526,0.00738541,56328.0,56326.0,0.001634]
[1726032484760,0.00738541,56327.0,56326.0,0.001634]
[1726032484994,0.18832559,56327.0,56326.0,0.001634]
[1726032485254,0.27632559,56327.0,56326.0,0.002634]
[1726032485703,0.26411191,56327.0,56326.0,0.001634]
[1726032486136,0.26911191,56327.0,56326.0,0.001634]
[1726032486378,0.91177386,56327.0,56326.0,0.001634]
[1726032486638,1.01029894,56327.0,56304.0,0.0613]
[1726032486849,0.00717173,56309.0,56304.0,0.0613]
[1726032487775,0.00717173,56307.0,56301.0,0.18326041]
[1726032488645,0.00717173,56307.0,56304.0,0.024]
[1726032488868,0.00717173,56307.0,56304.0,0.01]
[1726032489091,0.00717173,56307.0,56301.0,0.18326041]
[1726032489092,0.00717173,56307.0,56302.0,0.1]
[1726032489321,0.00817173,56307.0,56302.0,0.1]
[1726032490726,0.00717173,56307.0,56305.0,0.18326041]
[1726032492463,0.00717173,56307.0,56305.0,0.18526041]
[1726032493403,0.00717173,56307.0,56305.0,0.002]
[1726032494307,0.00717173,56307.0,56302.0,0.1]
[1726032494521,0.00717173,56307.0,56305.0,0.002]
[1726032496068,0.00717173,56307.0,56302.0,0.1]
[1726032496287,0.00717173,56307.0,56305.0,0.002]
[1726032497183,0.00717173,56310.0,56305.0,0.002]
[1726032497650,0.00717173,56310.0,56302.0,0.1]
[1726032498125,0.081,56314.0,56302.0,0.102]
[1726032498126,0.00717173,56307.0,56302.0,0.102]
[1726032498348,0.08287173,56303.0,56300.0,0.0037555]
[1726032499031,0.00717173,56303.0,56300.0,0.0037555]
[1726032499279,0.00717173,56305.0,56301.0,0.18326041]
[1726032500203,0.00717173,56305.0,56301.0,0.18489441]
[1726032501046,0.001,56303.0,56301.0,0.18489441]
[1726032501258,0.001,56303.0,56301.0,0.18689441]
[1726032501484,0.00717173,56305.0,56301.0,0.18689441]
[1726032501719,0.00717173,56305.0,56301.0,0.19089441]
[1726032502174,0.08287173,56307.0,56301.0,0.18489441]
[1726032502387,0.001,56303.0,56301.0,0.19189441]
[1726032502834,0.08287173,56307.0,56301.0,0.18489441]
[1726032503079,0.00717173,56310.0,56301.0,0.18489441]
[1726032503292,0.18311191,56310.0,56301.0,0.18489441]
[1726032503504,0.00717173,56310.0,56305.0,0.18326041]
[1726032503718,0.00717173,56312.0,56305.0,0.18326041]
[1726032504856,0.004,56310.0,56305.0,0.18326041]
[1726032505307,0.001,56310.0,56305.0,0.18326041]
[1726032505547,0.001,56310.0,56305.0,0.18426041]
[1726032505783,0.01217173,56312.0,56305.0,0.18426041]
[1726032506003,0.00717173,56310.0,56305.0,0.001]
[1726032506247,0.00717173,56307.0,56305.0,0.001]
[1726032506484,0.32081191,56306.0,56305.0,0.001]
[1726032506776,0.33192768,56306.0,56305.0,0.001]
[1726032507031,0.97958963,56306.0,56305.0,0.001]
[1726032507470,0.97958963,56306.0,56301.0,0.001634]
[1726032507680,0.01111577,56305.0,56301.0,0.001634]
[1726032507894,0.18705595,56304.0,56301.0,0.001634]
[1726032508108,0.01111577,56303.0,56301.0,0.001634]
[1726032508356,0.17594018,56302.0,56301.0,0.001634]
[1726032508589,0.18705595,56302.0,56301.0,0.001634]
[1726032508803,0.18705595,56302.0,56301.0,0.004634]
[1726032509017,0.17594018,56302.0,56301.0,0.004634]
[1726032509236,0.1870577,56302.0,56301.0,0.001634]
[1726032509475,0.25374018,56302.0,56301.0,0.011634]
[1726032509723,0.26485783,56302.0,56301.0,0.011634]
[1726032510591,0.26485772,56302.0,56301.0,0.008634]
[1726032511319,0.26585772,56302.0,56301.0,0.014634]
[1726032511537,0.26585772,56302.0,56301.0,0.007634]
[1726032511971,0.26685772,56302.0,56301.0,0.014634]
[1726032512836,0.91451967,56302.0,56301.0,0.014634]
[1726032513088,0.95800973,56302.0,56301.0,0.014634]
[1726032513323,0.9868914,56302.0,56301.0,0.014634]
[1726032513954,0.9858914,56302.0,56301.0,0.008634]
[1726032514173,0.9898914,56302.0,56301.0,0.008634]
[1726032514655,0.9858914,56302.0,56301.0,0.008634]
[1726032514893,0.9938914,56302.0,56301.0,0.009634]
[1726032515340,0.9938914,56302.0,56301.0,0.008634]
[1726032515341,0.9858914,56302.0,56301.0,0.008634]
[1726032515574,1.08948054,56302.0,56301.0,0.008634]
[1726032515794,1.08348054,56302.0,56301.0,0.001634]
[1726032516244,0.9928914,56302.0,56301.0,0.002634]
[1726032516470,0.9848914,56302.0,56300.0,0.0037555]
[1726032516692,0.26929907,56301.0,56300.0,0.0024024]
[1726032517607,1.01233275,56301.0,56300.0,0.0024024]
[1726032517863,1.01233275,56301.0,56282.0,0.0037555]
[1726032517864,0.15017173,56288.0,56282.0,0.0037555]
[1726032518110,0.42343214,56283.0,56282.0,0.0037555]
[1726032518378,0.53417232,56283.0,56260.0,0.14999999]
[1726032518603,0.53417232,56283.0,56245.0,0.02482827]
[1726032518604,0.53417232,56283.0,56221.0,0.52782518]
[1726032518605,0.06,56225.0,56221.0,0.52782518]
[1726032518856,0.35,56271.0,56221.0,0.52782518]
[1726032518857,0.597323,56251.0,56250.0,0.00218]
[1726032519068,0.597323,56251.0,56249.0,2.23835695]
[1726032519069,0.660332,56250.0,56249.0,2.23835695]
[1726032519323,1.64315199,56250.0,56249.0,1.35933235]
[1726032519578,1.64315199,56250.0,56248.0,1.274]
[1726032519579,0.75104288,56250.0,56248.0,1.18414048]
[1726032519814,0.75104288,56250.0,56248.0,1.05956363]
[1726032519815,1.011902,56249.0,56248.0,1.05956363]
[1726032520028,0.13413465,56249.0,56248.0,1.05956363]
[1726032520476,0.39361438,56249.0,56248.0,1.05956363]
[1726032520734,0.52426094,56249.0,56248.0,1.05956363]
[1726032520974,0.47513871,56249.0,56248.0,1.05956363]
[1726032521248,0.30839506,56249.0,56248.0,1.06056363]
[1726032521447,0.54631377,56249.0,56248.0,0.97918658]
[1726032521663,0.53231377,56249.0,56248.0,0.97818658]
[1726032521879,0.53231377,56249.0,56248.0,1.15597058]
[1726032522102,0.59851886,56249.0,56248.0,1.15697058]
[1726032522361,0.30107483,56249.0,56248.0,1.15697058]
[1726032522598,0.30107483,56249.0,56248.0,0.98018658]
[1726032522599,0.31407483,56249.0,56248.0,0.98018658]
[1726032522837,0.31407483,56249.0,56248.0,0.89215347]
[1726032522838,0.55836978,56249.0,56248.0,0.89215347]
[1726032523083,0.31407483,56249.0,56248.0,0.80676203]
[1726032523291,0.99404243,56249.0,56248.0,0.80576203]
[1726032523509,0.99404243,56249.0,56248.0,0.98354603]
[1726032523510,0.30107483,56249.0,56248.0,0.98354603]
[1726032523728,0.31852034,56249.0,56248.0,0.80676203]
[1726032523946,0.30452034,56249.0,56248.0,0.80576203]
[1726032524419,0.30452034,56249.0,56248.0,0.80676203]
[1726032524420,0.31852034,56249.0,56248.0,0.80676203]
[1726032524661,0.36478822,56249.0,56248.0,0.80676203]
[1726032524932,0.37378822,56249.0,56248.0,0.80576203]
[1726032525158,0.37665357,56249.0,56248.0,0.80676203]
[1726032525650,0.37665357,56249.0,56248.0,0.80839403]
[1726032525885,0.18994018,56249.0,56248.0,0.80739403]
[1726032526094,0.20294018,56249.0,56248.0,0.80839403]
[1726032526319,0.20294018,56249.0,56248.0,0.80739403]
[1726032526320,0.18894018,56249.0,56248.0,0.80739403]
[1726032526560,0.17594018,56249.0,56248.0,0.80639403]
[1726032526783,0.20294018,56249.0,56248.0,0.80839403]
[1726032527227,0.17594018,56249.0,56248.0,0.80639403]
[1726032527465,0.18894018,56249.0,56248.0,0.80739403]
[1726032527674,0.22227872,56249.0,56248.0,0.80839403]
[1726032528105,0.21194018,56249.0,56248.0,0.80739403]
[1726032528348,0.21194018,56249.0,56248.0,0.80729403]
[1726032528579,0.22594018,56249.0,56248.0,0.80829403]
[1726032529036,0.21294018,56249.0,56248.0,0.80729403]
[1726032529254,0.24767871,56249.0,56248.0,0.81097617]
[1726032529929,0.22594018,56249.0,56248.0,0.81097617]
[1726032530141,0.19894018,56249.0,56248.0,0.80897617]
[1726032530565,0.20294018,56249.0,56248.0,0.81097617]
[1726032531039,0.18894018,56249.0,56248.0,0.80997617]
[1726032531283,0.20294018,56249.0,56248.0,0.81097617]
[1726032531519,0.20294018,56249.0,56248.0,0.84097617]
[1726032531967,0.18894018,56249.0,56248.0,0.83997617]
[1726032532201,0.18894018,56249.0,56248.0,0.84197617]
[1726032532202,0.18994018,56249.0,56248.0,0.84197617]
[1726032532422,0.18994018,56249.0,56248.0,0.98167617]
[1726032532614,0.18994018,56249.0,56248.0,0.80997617]
[1726032532871,0.20194018,56249.0,56248.0,0.84097617]
[1726032533511,0.20194018,56249.0,56248.0,0.83997617]
[1726032533512,0.18794018,56249.0,56248.0,0.83997617]
[1726032533719,0.18994018,56249.0,56248.0,0.83997617]
[1726032533931,0.18994018,56249.0,56248.0,0.81097617]
[1726032534136,0.18994018,56249.0,56248.0,0.80997617]
[1726032534137,0.2289342,56249.0,56248.0,0.80997617]
[1726032534343,0.20994018,56249.0,56248.0,0.80997617]
[1726032534558,0.19694018,56249.0,56248.0,0.81097617]
[1726032534775,0.19694018,56249.0,56248.0,0.84097617]
[1726032535204,0.18694018,56249.0,56248.0,0.83997617]
[1726032535413,0.18994018,56249.0,56248.0,0.83997617]
[1726032535865,0.20194018,56249.0,56248.0,0.84097617]
[1726032536143,0.18994018,56249.0,56248.0,0.83997617]
[1726032536416,0.19894018,56249.0,56248.0,0.84097617]
[1726032536865,0.83760213,56249.0,56248.0,0.91827617]
[1726032537071,0.84960213,56249.0,56248.0,0.98267617]
[1726032537294,0.83560213,56249.0,56248.0,0.98167617]
[1726032537508,0.84341913,56249.0,56248.0,0.98267617]
[1726032537970,0.83641913,56249.0,56248.0,1.01167617]
[1726032538180,0.83641913,56249.0,56248.0,1.04167617]
[1726032538404,0.84641913,56249.0,56248.0,1.01267617]
[1726032538610,0.83441913,56249.0,56248.0,0.98167617]
[1726032538840,0.83441913,56249.0,56248.0,0.97967617]
[1726032539057,0.84241913,56249.0,56248.0,0.98167617]
[1726032539268,0.83441913,56249.0,56248.0,0.98167617]
[1726032539471,0.83441913,56249.0,56248.0,0.97967617]
[1726032539698,0.83441913,56249.0,56248.0,0.97867617]
[1726032539699,0.83241913,56249.0,56248.0,0.97867617]
[1726032540182,0.84241913,56249.0,56248.0,0.97867617]
[1726032540842,0.84241913,56249.0,56248.0,0.98067617]
[1726032541053,0.84241913,56249.0,56248.0,0.88527617]
[1726032541264,0.84241913,56249.0,56248.0,0.91527617]
[1726032541494,0.84241913,56249.0,56248.0,0.80897617]
[1726032541495,0.86541913,56249.0,56248.0,0.80897617]
[1726032541928,0.85741913,56249.0,56248.0,0.80897617]
[1726032542378,0.87141913,56249.0,56248.0,0.80897617]
[1726032542841,0.84741913,56249.0,56248.0,0.80897617]
[1726032543052,0.94616104,56249.0,56248.0,0.80897617]
[1726032543268,0.87541913,56249.0,56248.0,0.80567617]
[1726032543485,0.83841913,56249.0,56248.0,0.80567617]
[1726032543713,0.85241913,56249.0,56248.0,0.80567617]
[1726032544139,0.85241913,56249.0,56248.0,0.80767617]
[1726032544597,0.85241913,56249.0,56248.0,0.80567617]
[1726032544822,0.87541913,56249.0,56248.0,0.80567617]
[1726032545476,0.96296104,56249.0,56248.0,0.80567617]
[1726032545932,0.87541913,56249.0,56248.0,0.80567617]
[1726032546638,0.87541913,56249.0,56248.0,0.02075018]
[1726032547068,0.87541913,56249.0,56248.0,0.01028128]
[1726032548009,0.22775718,56249.0,56246.0,0.46941933]
[1726032548226,0.17594018,56247.0,56246.0,0.46941933]
[1726032548436,0.20146044,56247.0,56246.0,0.46941933]
[1726032548617,0.22446044,56247.0,56246.0,0.46941933]
[1726032548863,0.19894018,56247.0,56246.0,0.46941933]
[1726032549330,0.1987262,56247.0,56246.0,0.46941933]
[1726032549550,0.2127262,56247.0,56246.0,0.46941933]
[1726032549776,0.1987262,56247.0,56246.0,0.47808899]
[1726032549967,0.23890576,56247.0,56246.0,0.47808899]
[1726032550235,0.27135151,56247.0,56246.0,0.47972299]
[1726032550429,0.25735151,56247.0,56246.0,0.47972299]
[1726032550704,0.24335151,56247.0,56246.0,0.47972299]
[1726032551368,0.20317195,56247.0,56246.0,0.47972299]
[1726032552031,0.19417195,56247.0,56246.0,0.47972299]
[1726032552241,0.20817195,56247.0,56246.0,0.47972299]
[1726032552454,1.71651699,56247.0,56246.0,0.47972299]
[1726032552683,1.71651699,56247.0,56246.0,0.47105333]
[1726032552684,1.66457892,56247.0,56246.0,0.47105333]
[1726032552917,1.91892983,56247.0,56246.0,0.47105333]
[1726032553152,1.89969708,56247.0,56246.0,0.47105333]
[1726032553363,2.15065464,56247.0,56246.0,0.47105333]
[1726032553801,2.16465464,56247.0,56246.0,0.47105333]
[1726032554015,2.16465464,56247.0,56246.0,0.23137217]
[1726032554016,2.44205808,56247.0,56246.0,0.23137217]
[1726032554285,2.44205808,56247.0,56245.0,2.0646]
[1726032554286,0.72047,56246.0,56245.0,0.15458055]
[1726032554521,0.72047,56246.0,56243.0,1.65325501]
[1726032554522,0.720489,56244.0,56243.0,1.65325501]
[1726032554751,1.93038731,56244.0,56243.0,1.65325501]
[1726032554977,2.03038731,56244.0,56243.0,1.65325501]
[1726032555452,1.66692752,56244.0,56243.0,1.65325501]
[1726032555634,1.85073449,56244.0,56243.0,1.65325501]
[1726032555894,2.20632749,56244.0,56243.0,1.65325501]
[1726032556115,2.22032749,56244.0,56243.0,1.65325501]
[1726032556549,2.24332749,56244.0,56243.0,1.65325501]
[1726032556761,3.17433449,56244.0,56243.0,1.65325501]
[1726032557191,3.52992749,56244.0,56243.0,1.65325501]
[1726032557436,3.68630981,56244.0,56243.0,1.16443139]
[1726032557653,3.70958031,56244.0,56243.0,0.01676572]
[1726032557870,4.06239471,56244.0,56243.0,0.01676572]
[1726032558362,4.06239471,56244.0,56219.0,0.002137]
[1726032558363,0.169467,56222.0,56203.0,0.52782518]
[1726032558638,2.32591408,56244.0,56242.0,0.65241622]
[1726032558639,0.86111659,56243.0,56242.0,0.65241622]
[1726032558844,1.076115,56242.0,56241.0,1.0838]
[1726032559085,1.076115,56242.0,56241.0,1.03545556]
[1726032559086,2.44858633,56242.0,56241.0,1.03545556]
[1726032559330,2.54858633,56242.0,56241.0,0.40489585]
[1726032559552,3.04259546,56242.0,56241.0,0.38171189]
[1726032559999,3.04259546,56242.0,56240.0,1.28779992]
[1726032560000,1.600254,56241.0,56240.0,1.28779992]
[1726032560243,1.600254,56241.0,56240.0,1.06584389]
[1726032560244,3.29530764,56241.0,56240.0,1.06584389]
[1726032560468,3.73931507,56241.0,56240.0,0.4535854]
[1726032560711,3.73931507,56241.0,56240.0,0.44823468]
[1726032560944,3.73931507,56241.0,56240.0,0.07724622]
[1726032560945,3.84774907,56241.0,56240.0,0.07724622]
[1726032561162,4.02555507,56241.0,56239.0,1.8474379]
[1726032561394,3.61432422,56240.0,56239.0,1.09099562]
[1726032561840,3.61432422,56240.0,56239.0,1.09089562]
[1726032562054,3.66629523,56240.0,56239.0,1.08999562]
[1726032562268,4.80573844,56240.0,56239.0,0.61285999]
[1726032562487,5.50286858,56240.0,56239.0,0.24125054]
[1726032562710,2.19500801,56239.0,56238.0,2.11224054]
[1726032562936,4.11166846,56239.0,56238.0,2.11124054]
[1726032563145,3.46401855,56239.0,56238.0,1.72413848]
[1726032563354,3.55791855,56239.0,56238.0,1.72413848]
[1726032563576,3.60988956,56239.0,56238.0,1.72403848]
[1726032563815,3.60988956,56239.0,56238.0,1.69014984]
[1726032563816,4.66378837,56239.0,56238.0,1.69014984]
[1726032564028,4.61181736,56239.0,56238.0,1.69014984]